[Event "POL-chT 2 Liga 2019"]
[Site "Poronin"]
[Date "2019.09.12"]
[Round "6.22"]
[White "Jankowiak, Piotr"]
[Black "Gola, Karol"]
[Result "1/2-1/2"]
[ECO "D00"]
[WhiteElo "1999"]
[BlackElo "2203"]
[Annotator "NA"]
[PlyCount "102"]
[EventDate "2019.09.07"]
[EventType "team-tourn"]
[EventCountry "POL"]
[SourceTitle "playchess.com"]
[Source "ChessBase"]
[SourceQuality "1"]
[TimeControl "40/5400+30:1800+30"]

1. d4 {[%emt 0:00:00]} d5 {[%emt 0:00:00]} 2. Bf4 {[%emt 0:00:00]} Nf6 {[%emt 0:00:00]} 3. e3 {[%emt 0:00:06]} e6 {[%emt 0:00:12]} 4. Nd2 {[%emt 0:02:08]} c5 {[%emt 0:05:18]} 5. c3 {[%emt 0:00:11]} Nc6 {[%emt 0:00:50]} 6. Ngf3 {[%emt 0:00:19]} Bd6 {[%emt 0:05:13]} 7. Bg3 {[%emt 0:00:18]} O-O {[%emt 0:02:52]} 8. Bd3 {[%emt 0:00:13]} Re8 {[%emt 0:06:05]} 9. e4 {[%emt 0:01:40]} dxe4 {[%emt 0:19:52]} 10. Nxe4 {[%emt 0:00:12]} Nxe4 {[%emt 0:07:57]} 11. Bxe4 {[%emt 0:00:02]} cxd4 {[%emt 0:06:33]} 12. Bxc6 {[%emt 0:26:34]} bxc6 {[%emt 0:00:19]} 13. Bxd6 {[%emt 0:00:09]} Qxd6 {[%emt 0:00:10]} 14. Qxd4 {[%emt 0:00:06]} Qxd4 {[%emt 0:20:07]} 15. Nxd4 {[%emt 0:00:07]} c5 {[%emt 0:04:16]} 16. Nb3 {[%emt 0:06:04]} Bb7 {[%emt 0:00:39]} 17. f3 {[%emt 0:03:06]} c4 {[%emt 0:01:31]} 18. Nc5 {[%emt 0:12:15]} Bd5 {[%emt 0:03:04]} 19. b4 {[%emt 0:02:09]} cxb3 {[%emt 0:09:59]} 20. axb3 {[%emt 0:00:39]} Rec8 {[%emt 0:00:52]} 21. Ra5 {[%emt 0:04:35]} Rab8 {[%emt 0:00:30]} 22. b4 {[%emt 0:04:12]} g5 {[%emt 0:01:53]} 23. Kf2 {[%emt 0:03:38]} Ra8 {[%emt 0:00:33]} 24. Rd1 {[%emt 0:03:19]} Rc7 {[%emt 0:01:21]} 25. Rd4 {[%emt 0:00:47]} h6 {[%emt 0:00:54]} 26. Ke3 {[%emt 0:03:08]} Kg7 {[%emt 0:00:57]} 27. c4 {[%emt 0:03:15]} Bc6 {[%emt 0:00:32]} 28. b5 {[%emt 0:04:09]} Bd5 29. cxd5 {[%emt 0:13:43]} Rxc5 {[%emt 0:00:29]} 30. dxe6 {[%emt 0:03:22]} fxe6 {[%emt 0:00:20]} 31. Rd7+ {[%emt 0:00:06]} Kf6 {[%emt 0:00:03]} 32. Kd4 {[%emt 0:01:58]} Rf5 {[%emt 0:01:55]} 33. Rb7 {[%emt 0:01:47]} Rd8+ {[%emt 0:00:42]} 34. Kc4 {[%emt 0:01:16]} Rc8+ {[%emt 0:00:13]} 35. Kb4 {[%emt 0:00:18]} Rc2 {[%emt 0:00:28]} 36. Raxa7 {[%emt 0:00:48]} Rxg2 {[%emt 0:00:40]} 37. Rf7+ {[%emt 0:00:23]} Ke5 {[%emt 0:00:04]} 38. Rxf5+ {[%emt 0:00:03]} exf5 {[%emt 0:00:06]} 39. h4 {[%emt 0:01:49]} gxh4 {[%emt 0:01:29]} 40. Rh7 {[%emt 0:00:00]} Rg6 {[%emt 0:00:00]} 41. Kc5 {[%emt 0:06:38]} h3 {[%emt 0:17:31]} 42. b6 {[%emt 0:00:28]} Rg2 {[%emt 0:00:19]} 43. b7 {[%emt 0:12:50]} Rb2 {[%emt 0:01:29]} 44. Kc6 {[%emt 0:00:19]} Kf4 {[%emt 0:09:20]} 45. Rxh6 {[%emt 0:01:24]} Kg3 {[%emt 0:00:05]} 46. f4 {[%emt 0:00:52]} h2 {[%emt 0:00:18]} 47. Kc7 {[%emt 0:01:09]} Kg2 {[%emt 0:00:37]} 48. Rg6+ {[%emt 0:02:21]} Kf2 {[%emt 0:00:15]} 49. Rh6 {[%emt 0:00:44]} Kg2 {[%emt 0:00:51]} 50. Rg6+ {[%emt 0:00:10]} Kf3 {[%emt 0:00:41]} 51. Rh6 {[%emt 0:00:13]} Kg2 {[%emt 0:00:11]} 1/2-1/2

[Event "POL-chT 2 Liga 2019"]
[Site "Poronin"]
[Date "2019.09.12"]
[Round "6.23"]
[White "Szolc, Grzegorz"]
[Black "Statucki, Maciej"]
[Result "1/2-1/2"]
[ECO "D00"]
[WhiteElo "2038"]
[BlackElo "1754"]
[Annotator "NA"]
[PlyCount "87"]
[EventDate "2019.09.07"]
[EventType "team-tourn"]
[EventCountry "POL"]
[SourceTitle "playchess.com"]
[Source "ChessBase"]
[SourceQuality "1"]
[TimeControl "40/5400+30:1800+30"]

1. d4 {[%emt 0:00:00]} d5 {[%emt 0:00:00]} 2. Bf4 {[%emt 0:00:00]} Nf6 {[%emt 0:00:00]} 3. e3 {[%emt 0:00:00]} c5 {[%emt 0:00:53]} 4. c3 {[%emt 0:00:46]} Nc6 {[%emt 0:02:07]} 5. Nd2 {[%emt 0:00:33]} e6 {[%emt 0:02:18]} 6. Ngf3 {[%emt 0:00:41]} Bd6 {[%emt 0:01:34]} 7. Bg3 {[%emt 0:00:35]} O-O {[%emt 0:02:40]} 8. Bd3 {[%emt 0:00:54]} b6 {[%emt 0:04:56]} 9. e4 {[%emt 0:06:17]} dxe4 {[%emt 0:15:01]} 10. Nxe4 {[%emt 0:01:30]} Be7 {[%emt 0:06:32]} 11. Nxf6+ {[%emt 0:13:05]} Bxf6 {[%emt 0:01:03]} 12. Be4 {[%emt 0:01:42]} Bb7 {[%emt 0:04:53]} 13. dxc5 {[%emt 0:00:19]} bxc5 {[%emt 0:02:41]} 14. Qc2 {[%emt 0:03:16]} h6 {[%emt 0:01:58]} 15. Rd1 {[%emt 0:02:31]} Qb6 {[%emt 0:04:35]} 16. O-O {[%emt 0:01:38]} Rfd8 {[%emt 0:02:43]} 17. Rd2 {[%emt 0:11:37]} Rxd2 {[%emt 0:03:35]} 18. Nxd2 {[%emt 0:00:33]} Ba6 {[%emt 0:03:48]} 19. Re1 {[%emt 0:16:45]} Rd8 {[%emt 0:02:11]} 20. Nf3 {[%emt 0:06:48]} Bb7 {[%emt 0:05:21]} 21. h3 {[%emt 0:04:11]} Ne7 {[%emt 0:04:26]} 22. Bxb7 {[%emt 0:16:37]} Qxb7 {[%emt 0:00:25]} 23. Qb3 {[%emt 0:00:14]} Qd5 {[%emt 0:03:10]} 24. c4 {[%emt 0:04:56]} Qd3 {[%emt 0:02:12]} 25. Qxd3 {[%emt 0:01:20]} Rxd3 {[%emt 0:00:01]} 26. Be5 {[%emt 0:00:18]} Nc6 {[%emt 0:02:39]} 27. Bxf6 {[%emt 0:01:41]} gxf6 {[%emt 0:00:06]} 28. Rb1 {[%emt 0:01:20]} Nd4 {[%emt 0:00:54]} 29. Nxd4 {[%emt 0:01:12]} Rxd4 {[%emt 0:00:07]} 30. b3 {[%emt 0:00:06]} Rd2 {[%emt 0:00:17]} 31. a3 {[%emt 0:00:57]} Rc2 {[%emt 0:01:57]} 32. Kf1 {[%emt 0:01:05]} a5 {[%emt 0:01:31]} 33. Rd1 {[%emt 0:01:29]} a4 {[%emt 0:01:45]} 34. bxa4 {[%emt 0:00:34]} Rxc4 {[%emt 0:00:07]} 35. Rd8+ {[%emt 0:00:46]} Kg7 {[%emt 0:00:09]} 36. Ra8 {[%emt 0:00:25]} Rc3 {[%emt 0:00:05]} 37. a5 {[%emt 0:00:13]} Rxa3 {[%emt 0:00:23]} 38. a6 {[%emt 0:00:11]} c4 {[%emt 0:01:06]} 39. a7 {[%emt 0:01:14]} f5 {[%emt 0:01:35]} 40. Ke2 {[%emt 0:00:00]} Kf6 {[%emt 0:00:00]} 41. f4 {[%emt 0:06:24]} h5 {[%emt 0:00:40]} 42. Kd2 {[%emt 0:04:00]} h4 {[%emt 0:00:11]} 43. Kc2 {[%emt 0:01:07]} c3 {[%emt 0:00:04]} 44. Kd3 {[%emt 0:03:28] Ke5 Ke4+} 1/2-1/2

[Event "POL-chT 2 Liga 2019"]
[Site "Poronin"]
[Date "2019.09.12"]
[Round "6.24"]
[White "Czarniecka, Aleksandra"]
[Black "Szydlowska-Duda, Marta"]
[Result "1/2-1/2"]
[ECO "B01"]
[WhiteElo "2003"]
[BlackElo "1986"]
[Annotator "NA"]
[PlyCount "73"]
[EventDate "2019.09.07"]
[EventType "team-tourn"]
[EventCountry "POL"]
[SourceTitle "playchess.com"]
[Source "ChessBase"]
[SourceQuality "1"]
[TimeControl "40/5400+30:1800+30"]

1. e4 {[%emt 0:00:00]} d5 {[%emt 0:00:00]} 2. exd5 {[%emt 0:00:00]} Qxd5 {[%emt 0:00:00]} 3. Nc3 {[%emt 0:00:00]} Qd6 {[%emt 0:00:00]} 4. d4 {[%emt 0:00:27]} Nf6 {[%emt 0:00:00]} 5. Nf3 {[%emt 0:00:17]} a6 {[%emt 0:00:18]} 6. g3 {[%emt 0:00:32]} Bg4 {[%emt 0:00:46]} 7. h3 {[%emt 0:00:29]} Bh5 {[%emt 0:02:09]} 8. Bg2 {[%emt 0:00:36]} Nc6 {[%emt 0:01:39]} 9. Bf4 {[%emt 0:00:42]} Qe6+ {[%emt 0:15:42]} 10. Be3 {[%emt 0:00:07]} O-O-O {[%emt 0:03:01]} 11. O-O {[%emt 0:07:03]} Qc4 {[%emt 0:07:55]} 12. g4 {[%emt 0:14:26]} Bg6 {[%emt 0:00:22]} 13. Nd2 {[%emt 0:06:23]} Qb4 {[%emt 0:04:50]} 14. Nb3 {[%emt 0:12:02]} e5 {[%emt 0:04:33]} 15. Bxc6 {[%emt 0:03:30]} bxc6 {[%emt 0:00:53]} 16. Qe2 {[%emt 0:01:54]} exd4 {[%emt 0:29:05]} 17. Qxa6+ {[%emt 0:06:45]} Qb7 {[%emt 0:01:20]} 18. Qxb7+ {[%emt 0:00:35]} Kxb7 {[%emt 0:00:02]} 19. Nxd4 {[%emt 0:00:57]} c5 {[%emt 0:03:40]} 20. Nf5 {[%emt 0:01:58]} h5 {[%emt 0:00:43]} 21. Bg5 {[%emt 0:15:04]} hxg4 {[%emt 0:06:25]} 22. hxg4 {[%emt 0:00:37]} Bxf5 {[%emt 0:06:39]} 23. gxf5 {[%emt 0:00:30]} Rd4 {[%emt 0:00:07]} 24. f3 {[%emt 0:05:05]} Rh5 {[%emt 0:04:21]} 25. Bxf6 {[%emt 0:01:23]} gxf6 {[%emt 0:00:06]} 26. Ne4 {[%emt 0:01:26]} Rxf5 {[%emt 0:00:49]} 27. c3 {[%emt 0:02:21]} Rd3 {[%emt 0:00:38]} 28. Kg2 {[%emt 0:02:09]} c4 {[%emt 0:04:48]} 29. Rad1 {[%emt 0:01:16]} Rb5 {[%emt 0:01:33]} 30. Rxd3 {[%emt 0:04:36]} cxd3 {[%emt 0:00:07]} 31. b3 {[%emt 0:01:07]} f5 {[%emt 0:00:26]} 32. Nd2 {[%emt 0:01:38]} Re5 {[%emt 0:00:31]} 33. Rd1 {[%emt 0:04:59]} Re2+ {[%emt 0:00:30]} 34. Kf1 {[%emt 0:02:12]} Bc5 {[%emt 0:01:12]} 35. Nc4 {[%emt 0:02:53]} Rf2+ {[%emt 0:00:14]} 36. Ke1 {[%emt 0:00:10]} Re2+ {[%emt 0:01:03]} 37. Kf1 {[%emt 0:00:08]} 1/2-1/2

[Event "POL-chT 2 Liga 2019"]
[Site "Poronin"]
[Date "2019.09.12"]
[Round "6.25"]
[White "Polok, Kacper"]
[Black "Molenda, Marcin"]
[Result "0-1"]
[ECO "B23"]
[WhiteElo "2307"]
[BlackElo "2373"]
[Annotator "NA"]
[PlyCount "114"]
[EventDate "2019.09.07"]
[EventType "team-tourn"]
[EventCountry "POL"]
[SourceTitle "playchess.com"]
[Source "ChessBase"]
[SourceQuality "1"]
[TimeControl "40/5400+30:1800+30"]

1. e4 {[%emt 0:00:00]} c5 {[%emt 0:00:00]} 2. Nc3 {[%emt 0:00:39]} e6 {[%emt 0:00:00]} 3. Nf3 {[%emt 0:00:59]} a6 {[%emt 0:00:37]} 4. g3 {[%emt 0:03:00]} Nc6 {[%emt 0:04:38]} 5. Bg2 {[%emt 0:01:01]} d6 {[%emt 0:01:05]} 6. O-O {[%emt 0:00:34]} Nge7 {[%emt 0:03:06]} 7. d3 {[%emt 0:02:13]} g6 {[%emt 0:00:39]} 8. Be3 {[%emt 0:05:28]} Bg7 {[%emt 0:02:28]} 9. Qd2 {[%emt 0:01:06]} O-O {[%emt 0:03:50]} 10. Bh6 {[%emt 0:07:27]} e5 {[%emt 0:02:13]} 11. Bxg7 {[%emt 0:08:16]} Kxg7 {[%emt 0:00:20]} 12. Nh4 {[%emt 0:00:21]} Nd4 {[%emt 0:02:04]} 13. f4 {[%emt 0:05:02]} f6 {[%emt 0:01:20]} 14. Nd1 {[%emt 0:05:44]} Be6 {[%emt 0:07:37]} 15. c3 {[%emt 0:03:24]} Ndc6 {[%emt 0:00:06]} 16. Ne3 {[%emt 0:05:29]} exf4 {[%emt 0:13:32]} 17. gxf4 {[%emt 0:01:23]} Bg8 {[%emt 0:03:50]} 18. d4 {[%emt 0:04:27]} cxd4 {[%emt 0:10:00]} 19. cxd4 {[%emt 0:00:37]} d5 {[%emt 0:00:15]} 20. e5 {[%emt 0:07:58]} fxe5 {[%emt 0:02:36]} 21. fxe5 {[%emt 0:01:33]} Qb6 {[%emt 0:01:23]} 22. Nf3 {[%emt 0:08:51]} Nf5 {[%emt 0:03:21]} 23. Nxf5+ {[%emt 0:01:14]} Rxf5 {[%emt 0:00:05]} 24. Qe3 {[%emt 0:07:59]} Raf8 {[%emt 0:03:19]} 25. Rae1 {[%emt 0:08:14]} Rf4 {[%emt 0:01:17]} 26. Kh1 {[%emt 0:02:10]} h6 {[%emt 0:06:55]} 27. e6 {[%emt 0:02:05]} Re4 {[%emt 0:00:38]} 28. Qa3 {[%emt 0:00:15]} Rxe6 {[%emt 0:20:29]} 29. Ne5 {[%emt 0:02:18]} Rxf1+ {[%emt 0:00:53]} 30. Rxf1 {[%emt 0:00:09]} Qd8 {[%emt 0:01:44]} 31. Qb3 {[%emt 0:01:24]} Re7 {[%emt 0:02:31]} 32. Qf3 {[%emt 0:00:25]} Nxe5 {[%emt 0:01:01]} 33. Qf6+ {[%emt 0:00:22]} Kh7 {[%emt 0:00:01]} 34. dxe5 {[%emt 0:00:15]} Qe8 {[%emt 0:00:24]} 35. Re1 {[%emt 0:00:30]} Qf7 {[%emt 0:00:48]} 36. Qd6 {[%emt 0:01:22]} Qe6 {[%emt 0:00:32]} 37. Qc5 {[%emt 0:01:09]} Qd7 {[%emt 0:00:42]} 38. Qd4 {[%emt 0:01:26]} Be6 {[%emt 0:00:35]} 39. Rd1 {[%emt 0:01:02]} Qd8 {[%emt 0:00:39]} 40. Qc5 {[%emt 0:00:00]} Rd7 {[%emt 0:00:00]} 41. Rf1 {[%emt 0:08:51]} Qg5 {[%emt 0:05:39]} 42. Qd4 {[%emt 0:06:37]} Rc7 {[%emt 0:01:06]} 43. h4 {[%emt 0:01:31]} Qg3 {[%emt 0:03:47]} 44. Qf4 {[%emt 0:01:40]} Qxf4 {[%emt 0:01:26]} 45. Rxf4 {[%emt 0:00:07]} Kg7 {[%emt 0:00:33]} 46. Rd4 {[%emt 0:05:12]} b6 {[%emt 0:08:02]} 47. Kh2 {[%emt 0:00:48]} Rc4 {[%emt 0:05:20]} 48. Rxc4 {[%emt 0:00:32]} dxc4 {[%emt 0:00:03]} 49. a3 {[%emt 0:00:27]} b5 {[%emt 0:01:03]} 50. Kg3 {[%emt 0:01:22]} a5 {[%emt 0:01:03]} 51. Kf4 {[%emt 0:00:17]} b4 {[%emt 0:00:14]} 52. axb4 {[%emt 0:00:28]} axb4 {[%emt 0:01:19]} 53. Ke3 {[%emt 0:01:12]} g5 {[%emt 0:00:22]} 54. hxg5 {[%emt 0:00:15]} hxg5 {[%emt 0:00:16]} 55. Kd4 {[%emt 0:01:15]} g4 {[%emt 0:00:30]} 56. Be4 {[%emt 0:01:53]} Kh6 {[%emt 0:01:08]} 57. Bd5 {[%emt 0:05:18]} g3 {[%emt 0:00:42]} 0-1

[Event "POL-chT 2 Liga 2019"]
[Site "Poronin"]
[Date "2019.09.12"]
[Round "6.26"]
[White "Czerw, Dawid"]
[Black "Szczepanek, Radoslaw"]
[Result "1/2-1/2"]
[ECO "E97"]
[WhiteElo "2269"]
[BlackElo "2195"]
[Annotator "NA"]
[PlyCount "47"]
[EventDate "2019.09.07"]
[EventType "team-tourn"]
[EventCountry "POL"]
[SourceTitle "playchess.com"]
[Source "ChessBase"]
[SourceQuality "1"]
[TimeControl "40/5400+30:1800+30"]

1. d4 {[%emt 0:00:00]} Nf6 {[%emt 0:00:00]} 2. c4 {[%emt 0:00:00]} g6 {[%emt 0:00:00]} 3. Nc3 {[%emt 0:00:00]} Bg7 {[%emt 0:00:02]} 4. e4 {[%emt 0:00:00]} d6 {[%emt 0:00:04]} 5. Nf3 {[%emt 0:00:00]} O-O {[%emt 0:00:13]} 6. Be2 {[%emt 0:00:00]} e5 {[%emt 0:00:19]} 7. O-O {[%emt 0:00:00]} Nc6 {[%emt 0:00:33]} 8. d5 {[%emt 0:00:00]} Ne7 {[%emt 0:00:10]} 9. b4 {[%emt 0:00:05]} a5 {[%emt 0:00:47]} 10. bxa5 {[%emt 0:14:08]} c5 {[%emt 0:00:55]} 11. a4 {[%emt 0:02:07]} Rxa5 {[%emt 0:01:33]} 12. Nd2 {[%emt 0:00:39]} Nd7 {[%emt 0:07:38]} 13. Ra3 {[%emt 0:02:33]} Ra6 {[%emt 0:01:58]} 14. Nb5 {[%emt 0:02:13]} f5 {[%emt 0:14:29]} 15. exf5 {[%emt 0:03:33]} Nxf5 {[%emt 0:07:00]} 16. Ne4 {[%emt 0:14:44]} Nf6 {[%emt 0:09:35]} 17. Bd3 {[%emt 0:00:06]} Nxe4 {[%emt 0:02:16]} 18. Bxe4 {[%emt 0:06:57]} Nd4 {[%emt 0:11:12]} 19. f4 {[%emt 0:01:39]} Bf5 {[%emt 0:09:44]} 20. Bxf5 {[%emt 0:13:11]} Rxf5 {[%emt 0:01:10]} 21. fxe5 {[%emt 0:05:23]} Bxe5 {[%emt 0:00:35]} 22. Rxf5 {[%emt 0:04:03]} Nxf5 {[%emt 0:09:58]} 23. Qg4 {[%emt 0:03:33]} Ra8 24. Bd2 1/2-1/2

[Event "POL-chT 2 Liga 2019"]
[Site "Poronin"]
[Date "2019.09.12"]
[Round "6.27"]
[White "Malinowski, Damian"]
[Black "Niedbala, Bartlomiej"]
[Result "0-1"]
[ECO "A10"]
[WhiteElo "2038"]
[BlackElo "2145"]
[Annotator "NA"]
[PlyCount "150"]
[EventDate "2019.09.07"]
[EventType "team-tourn"]
[EventCountry "POL"]
[SourceTitle "playchess.com"]
[Source "ChessBase"]
[SourceQuality "1"]
[TimeControl "40/5400+30:1800+30"]

1. c4 {[%emt 0:00:00]} f5 {[%emt 0:00:00]} 2. g3 {[%emt 0:00:00]} Nf6 {[%emt 0:00:00]} 3. Bg2 {[%emt 0:00:23]} e6 {[%emt 0:01:25]} 4. Nf3 {[%emt 0:05:02]} Be7 {[%emt 0:00:10]} 5. O-O {[%emt 0:00:36]} O-O {[%emt 0:00:05]} 6. b3 {[%emt 0:01:35]} d6 {[%emt 0:00:26]} 7. d4 {[%emt 0:02:38]} Ne4 {[%emt 0:01:12]} 8. Nfd2 {[%emt 0:02:05]} Nxd2 {[%emt 0:03:23]} 9. Bxd2 {[%emt 0:05:39]} e5 {[%emt 0:05:37]} 10. dxe5 {[%emt 0:08:33]} dxe5 {[%emt 0:00:36]} 11. Bc3 {[%emt 0:01:42]} Nd7 {[%emt 0:03:21]} 12. Bb2 {[%emt 0:07:58]} c6 {[%emt 0:02:29]} 13. Qc2 {[%emt 0:07:08]} Qc7 {[%emt 0:09:42]} 14. Nc3 {[%emt 0:04:54]} Nf6 {[%emt 0:04:22]} 15. Rad1 {[%emt 0:04:47]} Be6 {[%emt 0:02:33]} 16. Bh3 {[%emt 0:03:05]} Qc8 {[%emt 0:01:10]} 17. Nb1 {[%emt 0:03:14]} f4 {[%emt 0:01:07]} 18. Bg2 {[%emt 0:05:43]} Bf5 {[%emt 0:13:00]} 19. Qc3 {[%emt 0:08:25]} fxg3 {[%emt 0:01:04]} 20. hxg3 {[%emt 0:04:43]} Ng4 {[%emt 0:00:32]} 21. e3 {[%emt 0:07:26]} Bg5 {[%emt 0:19:57]} 22. f4 {[%emt 0:07:29]} Bf6 {[%emt 0:01:26]} 23. Qe1 {[%emt 0:02:32]} e4 {[%emt 0:03:17]} 24. Bxf6 {[%emt 0:01:09]} Rxf6 {[%emt 0:00:01]} 25. Bh3 {[%emt 0:02:54]} Rh6 {[%emt 0:00:22]} 26. Bxg4 {[%emt 0:00:34]} Bxg4 {[%emt 0:00:01]} 27. Rd2 {[%emt 0:00:22]} Bf3 {[%emt 0:00:51]} 28. Rh2 {[%emt 0:00:50]} Rxh2 {[%emt 0:01:42]} 29. Kxh2 {[%emt 0:00:11]} Qg4 {[%emt 0:00:24]} 30. Rxf3 {[%emt 0:01:19]} Qxf3 {[%emt 0:01:25]} 31. Nd2 {[%emt 0:00:11]} Qh5+ {[%emt 0:00:09]} 32. Kg2 {[%emt 0:00:08]} Rd8 {[%emt 0:00:09]} 33. b4 {[%emt 0:00:53]} Rd6 {[%emt 0:01:50]} 34. a4 {[%emt 0:00:46]} Rh6 {[%emt 0:00:08]} 35. Nxe4 {[%emt 0:00:14]} Qh2+ {[%emt 0:04:12]} 36. Kf3 {[%emt 0:00:11]} Qh1+ {[%emt 0:03:42]} 37. Qxh1 {[%emt 0:00:11]} Rxh1 {[%emt 0:00:01]} 38. Nd6 {[%emt 0:00:25]} Ra1 {[%emt 0:02:21]} 39. Nxb7 {[%emt 0:01:58]} Rxa4 {[%emt 0:00:14]} 40. Nd8 {[%emt 0:00:00]} Rxb4 {[%emt 0:00:00]} 41. Nxc6 {[%emt 0:02:12]} Rxc4 {[%emt 0:14:01]} 42. Nxa7 {[%emt 0:00:21]} Rc5 {[%emt 0:00:01]} 43. Ke4 {[%emt 0:01:04]} h5 {[%emt 0:01:06]} 44. Kd4 {[%emt 0:00:59]} Rc1 {[%emt 0:01:42]} 45. Ke4 {[%emt 0:00:34]} Rc5 {[%emt 0:01:42]} 46. Kd4 {[%emt 0:00:13]} Rc2 {[%emt 0:03:58]} 47. Ke4 {[%emt 0:00:20]} Rc4+ {[%emt 0:01:44]} 48. Kd5 {[%emt 0:03:21]} Rc3 {[%emt 0:02:43]} 49. Ke4 {[%emt 0:01:26]} g5 {[%emt 0:01:58]} 50. fxg5 {[%emt 0:07:55]} Rc5 {[%emt 0:00:13]} 51. Kf4 {[%emt 0:01:41]} Kf7 {[%emt 0:00:32]} 52. e4 {[%emt 0:01:43]} Kg6 {[%emt 0:00:44]} 53. e5 {[%emt 0:00:21]} Rc4+ {[%emt 0:01:10]} 54. Kf3 {[%emt 0:00:19]} Kxg5 {[%emt 0:09:01]} 55. Nb5 {[%emt 0:00:58]} Rb4 {[%emt 0:01:15]} 56. Nd6 {[%emt 0:01:24]} Rb3+ {[%emt 0:00:03]} 57. Kf2 {[%emt 0:01:45]} Kg4 {[%emt 0:03:50]} 58. e6 {[%emt 0:05:29]} Rf3+ {[%emt 0:00:09]} 59. Ke2 {[%emt 0:01:42]} Rf6 {[%emt 0:00:04]} 60. e7 {[%emt 0:04:04]} Re6+ {[%emt 0:00:18]} 61. Kf2 {[%emt 0:00:08]} Rxe7 {[%emt 0:00:03]} 62. Nc4 {[%emt 0:00:10]} Kh3 {[%emt 0:01:28]} 63. Nd6 {[%emt 0:01:59]} Re6 {[%emt 0:00:29]} 64. Nc4 {[%emt 0:00:17]} Rf6+ {[%emt 0:00:41]} 65. Kg1 {[%emt 0:00:10]} Kxg3 {[%emt 0:00:20]} 66. Nd2 {[%emt 0:00:01]} Re6 {[%emt 0:02:11]} 67. Nf1+ Kh3 {[%emt 0:00:07]} 68. Nd2 {[%emt 0:00:24]} h4 {[%emt 0:00:36]} 69. Kf2 {[%emt 0:00:14]} Rf6+ {[%emt 0:00:44]} 70. Kg1 {[%emt 0:00:04]} Ra6 {[%emt 0:00:21]} 71. Ne4 {[%emt 0:00:10]} Ra1+ {[%emt 0:00:06]} 72. Kf2 {[%emt 0:00:02]} Kh2 {[%emt 0:00:48]} 73. Ng5 {[%emt 0:00:06]} Ra2+ {[%emt 0:00:12]} 74. Kf1 {[%emt 0:00:12]} h3 {[%emt 0:01:03]} 75. Nf3+ {[%emt 0:00:30]} Kg3 {[%emt 0:00:07]} 0-1

[Event "POL-chT 2 Liga 2019"]
[Site "Poronin"]
[Date "2019.09.12"]
[Round "6.28"]
[White "Galuszka, Tomasz"]
[Black "Sochacki, Zenon"]
[Result "1-0"]
[ECO "B19"]
[WhiteElo "2222"]
[BlackElo "1887"]
[Annotator "NA"]
[PlyCount "67"]
[EventDate "2019.09.07"]
[EventType "team-tourn"]
[EventCountry "POL"]
[SourceTitle "playchess.com"]
[Source "ChessBase"]
[SourceQuality "1"]
[TimeControl "40/5400+30:1800+30"]

1. e4 {[%emt 0:00:00]} c6 {[%emt 0:00:00]} 2. d4 {[%emt 0:00:00]} d5 {[%emt 0:00:00]} 3. Nc3 {[%emt 0:00:00]} dxe4 {[%emt 0:00:00]} 4. Nxe4 {[%emt 0:00:00]} Bf5 {[%emt 0:00:00]} 5. Ng3 {[%emt 0:00:00]} Bg6 {[%emt 0:00:00]} 6. h4 {[%emt 0:00:09]} h6 {[%emt 0:00:02]} 7. Nf3 {[%emt 0:00:02]} Nd7 {[%emt 0:00:15]} 8. h5 {[%emt 0:00:02]} Bh7 {[%emt 0:00:12]} 9. Bd3 {[%emt 0:00:03]} Bxd3 {[%emt 0:00:13]} 10. Qxd3 {[%emt 0:00:05]} e6 {[%emt 0:00:09]} 11. Bd2 {[%emt 0:00:03]} Ngf6 {[%emt 0:00:21]} 12. O-O-O {[%emt 0:00:14]} Be7 {[%emt 0:00:25]} 13. Kb1 {[%emt 0:00:18]} O-O {[%emt 0:03:30]} 14. Ne4 {[%emt 0:00:02]} Nxe4 {[%emt 0:00:08]} 15. Qxe4 {[%emt 0:00:05]} Nf6 {[%emt 0:00:10]} 16. Qe2 {[%emt 0:00:02]} Ng4 {[%emt 0:03:26]} 17. Ne5 {[%emt 0:02:48]} Nxe5 {[%emt 0:01:23]} 18. dxe5 {[%emt 0:00:57]} Qc7 {[%emt 0:02:24]} 19. g4 {[%emt 0:01:25]} Rfd8 {[%emt 0:03:02]} 20. f4 {[%emt 0:02:36]} b5 {[%emt 0:02:14]} 21. g5 {[%emt 0:07:47]} Rd5 {[%emt 0:06:37]} 22. gxh6 {[%emt 0:00:26]} gxh6 {[%emt 0:01:09]} 23. Rhg1+ {[%emt 0:01:32]} Kf8 {[%emt 0:01:02]} 24. f5 {[%emt 0:01:03]} Bg5 {[%emt 0:02:05]} 25. Bxg5 {[%emt 0:03:14]} hxg5 {[%emt 0:02:45]} 26. Rxd5 {[%emt 0:00:26]} cxd5 {[%emt 0:20:22]} 27. Rxg5 {[%emt 0:03:25]} exf5 {[%emt 0:01:51]} 28. Rxf5 {[%emt 0:01:27]} Ke7 {[%emt 0:09:42]} 29. Qf2 {[%emt 0:03:40]} Rf8 {[%emt 0:02:03]} 30. a3 {[%emt 0:03:33]} Qd7 {[%emt 0:08:32]} 31. h6 {[%emt 0:00:54]} d4 {[%emt 0:01:46]} 32. h7 {[%emt 0:00:45]} Qc8 {[%emt 0:03:34]} 33. Qh4+ {[%emt 0:00:45]} Kd7 {[%emt 0:00:10]} 34. Qxd4+ 1-0